fUSD/lending_fUSD_20250602
["ID","MTS","AMOUNT","RATE_DAILY","PERIOD"]
[363744968,1748858625291,-928.89,0.00019315,2]
[363744969,1748858625315,-6229.101331,0.00019315,2]
[363744970,1748858625339,-451.19,0.00019315,2]
[363744971,1748858625364,-427.77,0.00019315,2]
[363744972,1748858625392,-420.0,0.00019315,2]
[363744973,1748858625418,-420.0,0.00019315,2]
[363744974,1748858625444,-420.0,0.00019315,2]
[363744975,1748858625468,-420.0,0.00019315,2]
[363744976,1748858625494,-420.0,0.00019315,2]
[363744977,1748858625517,-938.88,0.00019315,2]
[363744978,1748858625541,-420.0,0.00019315,2]
[363744979,1748858625565,-420.0,0.00019315,2]
[363744980,1748858625589,-420.0,0.00019315,2]
[363744981,1748858625613,-420.0,0.00019315,2]
[363744982,1748858625639,-534.44,0.00019315,2]
[363744983,1748858625663,-804.15,0.00019315,2]
[363744984,1748858625689,-420.0,0.00019315,2]
[363744985,1748858625713,-563.79,0.00019315,2]
[363744986,1748858625737,-420.0,0.00019315,2]
[363744987,1748858625763,-1620.931527,0.00019315,2]
[363744988,1748858625789,-420.0,0.00019315,2]
[363744989,1748858625815,-420.0,0.00019315,2]
[363744990,1748858625841,-420.0,0.00019315,2]
[363744991,1748858625867,-1106.61,0.00019315,2]
[363744992,1748858625893,-420.0,0.00019315,2]
[363744993,1748858625917,-210.07,0.00019315,2]
[363744994,1748858625940,-420.0,0.00019315,2]
[363744995,1748858625963,-420.0,0.00019315,2]
[363744996,1748858625986,-420.0,0.00019315,2]
[363744997,1748858626008,-420.0,0.00019315,2]
[363744998,1748858626031,-420.0,0.00019315,2]
[363744999,1748858626054,-420.0,0.00019315,2]
[363745000,1748858626077,-420.0,0.00019315,2]
[363745001,1748858626102,-510.52,0.00019315,2]
[363745002,1748858626303,-608.17,0.00019315,2]
[363745003,1748858626333,-420.0,0.00019315,2]
[363745004,1748858626358,-512.62,0.00019315,2]
[363745005,1748858626385,-568.06,0.00019315,2]
[363745006,1748858626411,-420.0,0.00019315,2]
[363745007,1748858626436,-533.00747578,0.00019315,2]
[363745008,1748858626460,-686.52,0.00019315,2]
[363745009,1748858626484,-420.0,0.00019315,2]
[363745010,1748858626507,-420.0,0.00019315,2]
[363745011,1748858626531,-420.0,0.00019315,2]
[363745012,1748858626554,-420.0,0.00019315,2]
[363745013,1748858626577,-6428.14571816,0.00019324,2]
[363745014,1748858626600,-10887.64388079,0.00019327,2]
[363745015,1748858626623,-500.0,0.0001933,2]
[363745016,1748858626647,-500.0,0.0001933,2]
[363745017,1748858626669,-279.78387837,0.0001933,2]
[363745018,1748858626696,-10278.247505,0.00019331,2]
[363745019,1748858626719,-220.41725586,0.00019349,2]
[363745020,1748858626741,-500.0,0.0001935,2]
[363745021,1748858626764,-500.0,0.0001935,2]
[363745022,1748858626786,-500.0,0.0001935,2]
[363745023,1748858626809,-167.74394956,0.00019364,2]
[363745024,1748858626832,-614.10121786,0.00019367,2]
[363745025,1748858626857,-500.0,0.00019372,2]
[363745026,1748858626881,-10658.54266268,0.00019386,2]
[363745027,1748858626903,-623.70323279,0.00019393,2]
[363745028,1748858626928,-3600.0,0.000194,7]
[363745029,1748858626954,-1800.0,0.000194,7]
[363745030,1748858626978,-6428.14571816,0.00019406,2]
[363745031,1748858627000,-4022.75691748,0.00019412,2]
[363745032,1748858627024,-2768.86506058,0.00019441,2]
[363745033,1748858627047,-519.61553835,0.00019452,2]
[363745034,1748858627070,-420.0,0.00019452,2]
[363745035,1748858627093,-420.0,0.00019452,2]
[363745036,1748858627115,-883.16,0.00019452,2]
[363745037,1748858627138,-358.51097941,0.00019452,2]
[363745038,1748858628355,-2500.0,0.00019091,2]
[363745039,1748858628383,-420.0,0.00019178,2]
[363745040,1748858628412,-420.0,0.00019178,2]
[363745041,1748858628438,-420.0,0.00019178,2]
[363745042,1748858628465,-420.0,0.00019178,2]
[363745043,1748858628489,-427.71010985,0.00019178,2]
[363745044,1748858628513,-420.0,0.00019315,2]
[363745045,1748858628537,-420.0,0.00019315,2]
[363745046,1748858628561,-61.48902059,0.00019452,2]
[363745047,1748858628585,-419.58125282,0.00019452,2]
[363745048,1748858628609,-188.78,0.00019452,2]
[363745049,1748858628634,-420.0,0.00019452,2]
[363745050,1748858628659,-420.0,0.00019452,2]
[363745051,1748858628682,-1188.55,0.00019452,2]
[363745052,1748858628707,-420.0,0.00019452,2]
[363745053,1748858628729,-420.0,0.00019452,2]
[363745054,1748858628753,-420.0,0.00019452,2]
[363745055,1748858628776,-420.0,0.00019452,2]
[363745056,1748858628801,-420.0,0.00019452,2]
[363745057,1748858628826,-420.0,0.00019452,2]
[363745058,1748858628852,-420.0,0.00019452,2]
[363745059,1748858628878,-420.0,0.00019452,2]
[363745060,1748858628902,-420.0,0.00019452,2]
[363745061,1748858628927,-415.7,0.00019452,2]
[363745062,1748858628954,-246.33737635,0.00019452,2]
[363745063,1748858628979,-420.0,0.00019452,2]
[363745064,1748858629004,-420.0,0.00019452,2]
[363745065,1748858629028,-420.0,0.00019452,2]
[363745066,1748858629052,-479.07,0.00019452,2]
[363745067,1748858629077,-3556.13,0.00019452,2]
[363745068,1748858629102,-420.0,0.00019452,2]
[363745069,1748858629128,-420.0,0.00019452,2]
[363745070,1748858629153,-420.0,0.00019452,2]
[363745071,1748858629179,-420.0,0.00019452,2]
[363745072,1748858629203,-420.0,0.00019452,2]
[363745073,1748858629227,-420.0,0.00019452,2]
[363745074,1748858629251,-420.0,0.00019452,2]
[363745075,1748858629277,-534.57,0.00019452,2]
[363745076,1748858629300,-2246.06,0.00019452,2]
[363745077,1748858629327,-420.0,0.00019452,2]
[363745078,1748858629352,-420.0,0.00019452,2]
[363745079,1748858629376,-541.68915537,0.00019452,2]
[363745080,1748858629408,-420.0,0.00019452,2]
[363745081,1748858629432,-530.2,0.00019452,2]
[363745082,1748858629457,-420.0,0.00019452,2]
[363745083,1748858629483,-1261.59,0.00019452,2]
[363745084,1748858629507,-4888.77,0.00019452,2]
[363745085,1748858629530,-420.0,0.00019452,2]
[363745086,1748858629553,-420.0,0.00019452,2]
[363745087,1748858629576,-420.0,0.00019452,2]
[363745088,1748858629599,-526.71,0.00019452,2]
[363745089,1748858629622,-420.0,0.00019452,2]
[363745090,1748858629646,-420.0,0.00019452,2]
[363745091,1748858629669,-420.0,0.00019452,2]
[363745092,1748858629693,-420.0,0.00019452,2]
[363745093,1748858629718,-255.5,0.00019452,2]
[363745094,1748858629742,-420.0,0.00019452,2]
[363745095,1748858629767,-420.0,0.00019452,2]
[363745096,1748858629792,-420.0,0.00019452,2]
[363745097,1748858629815,-420.0,0.00019452,2]
[363745098,1748858629839,-477.39,0.00019452,2]
[363745099,1748858629862,-420.0,0.00019452,2]
[363745100,1748858629887,-420.0,0.00019452,2]
[363745101,1748858629912,-420.0,0.00019452,2]
[363745102,1748858629937,-420.0,0.00019452,2]
[363745103,1748858629961,-420.0,0.00019452,2]
[363745104,1748858629985,-420.0,0.00019452,2]
[363745105,1748858630009,-420.0,0.00019452,2]
[363745106,1748858630032,-420.0,0.00019452,2]
[363745107,1748858630056,-420.0,0.00019452,2]
[363745108,1748858630080,-420.0,0.00019452,2]
[363745109,1748858630104,-420.0,0.00019452,2]
[363745110,1748858630128,-420.0,0.00019452,2]
[363745111,1748858630151,-420.0,0.00019452,2]
[363745112,1748858630175,-1067.77,0.00019452,2]
[363745113,1748858630201,-906.84,0.00019452,2]
[363745114,1748858630225,-847.97,0.00019452,2]
[363745115,1748858630249,-511.36,0.00019452,2]
[363745116,1748858630272,-420.0,0.00019452,2]
[363745117,1748858630298,-1205.26,0.00019452,2]
[363745118,1748858630321,-420.0,0.00019452,2]
[363745119,1748858630345,-420.0,0.00019452,2]
[363745120,1748858630368,-420.0,0.00019452,2]
[363745121,1748858630395,-420.0,0.00019452,2]
[363745122,1748858630420,-420.0,0.00019452,2]
[363745123,1748858630444,-420.0,0.00019452,2]
[363745124,1748858630468,-928.89,0.00019452,2]
[363745125,1748858630492,-451.19,0.00019452,2]
[363745126,1748858630516,-427.77,0.00019452,2]
[363745127,1748858630541,-420.0,0.00019452,2]
[363745128,1748858630569,-492.82,0.00019452,2]
[363745129,1748858630781,-420.0,0.00019452,2]
[363745130,1748858630808,-420.0,0.00019452,2]
[363745131,1748858630833,-938.88,0.00019452,2]
[363745132,1748858630857,-217.84976527,0.00019452,2]
[363745133,1748858630885,-420.0,0.00019452,2]
[363745134,1748858630911,-420.0,0.00019452,2]
[363745135,1748858630936,-420.0,0.00019452,2]
[363745136,1748858630959,-534.44,0.00019452,2]
[363745137,1748858630987,-804.15,0.00019452,2]
[363745138,1748858631018,-420.0,0.00019452,2]
[363745139,1748858631045,-563.79,0.00019452,2]
[363745140,1748858631072,-420.0,0.00019452,2]
[363745141,1748858631098,-420.0,0.00019452,2]
[363745142,1748858631128,-1106.61,0.00019452,2]
[363745143,1748858631153,-420.0,0.00019452,2]
[363745144,1748858631179,-420.0,0.00019452,2]
[363745145,1748858631207,-420.0,0.00019452,2]
[363745146,1748858631243,-420.0,0.00019452,2]
[363745147,1748858631277,-510.52,0.00019452,2]
[363745148,1748858631310,-608.17,0.00019452,2]
[363745149,1748858631343,-420.0,0.00019452,2]
[363745150,1748858631381,-266.46216338,0.00019452,2]
[363745151,1748858631427,-686.52,0.00019452,2]
[363745152,1748858631459,-420.0,0.00019452,2]
[363745153,1748858631491,-449.27,0.00019452,2]
[363745154,1748858631520,-420.0,0.00019452,2]
[363745155,1748858631551,-564.8,0.00019467,2]
[363745156,1748858631584,-167.74394956,0.00019471,2]
[363745157,1748858631612,-155.0796931,0.00019488,2]
[363745158,1748858631650,-6428.14571816,0.00019488,2]
[363745159,1748858631684,-4500.0,0.000195,7]
[363745160,1748858631719,-2200.0,0.000195,7]
[363745161,1748858631751,-375.0,0.00019562,2]
[363745162,1748858631784,-6428.14571816,0.00019571,2]
[363745163,1748858631817,-167.74394956,0.00019579,2]
[363745164,1748858631849,-500.0,0.00019588,2]
[363745165,1748858631885,-883.16,0.00019589,2]
[363745166,1748858631916,-420.0,0.00019589,2]
[363745167,1748858631946,-1188.55,0.00019589,2]
[363745168,1748858631974,-214.3,0.00019589,2]
[363745169,1748858632002,-420.0,0.00019589,2]
[363745170,1748858632031,-479.07,0.00019589,2]
[363745171,1748858632061,-3556.13,0.00019589,2]
[363745172,1748858632091,-453.72,0.00019589,2]
[363745173,1748858632120,-420.0,0.00019589,2]
[363745174,1748858632154,-368.83,0.00019589,2]
[363745175,1748858632185,-534.57,0.00019589,2]
[363745176,1748858632211,-2246.06,0.00019589,2]
[363745177,1748858632238,-420.0,0.00019589,2]
[363745178,1748858632267,-308.67,0.00019589,2]
[363745179,1748858632295,-525.90627377,0.00019589,2]
[363745180,1748858632324,-1261.59,0.00019589,2]
[363745181,1748858632355,-4888.77,0.00019589,2]
[363745182,1748858632387,-553.53,0.00019589,2]
[363745183,1748858632417,-498.96,0.00019589,2]
[363745184,1748858632447,-420.0,0.00019589,2]
[363745185,1748858632476,-526.71,0.00019589,2]
[363745186,1748858632505,-420.0,0.00019589,2]
[363745187,1748858632533,-420.0,0.00019589,2]
[363745188,1748858632562,-420.0,0.00019589,2]
[363745189,1748858632590,-158.39,0.00019589,2]
[363745190,1748858632621,-420.0,0.00019589,2]
[363745191,1748858632652,-532.83,0.00019589,2]
[363745192,1748858632682,-420.0,0.00019589,2]
[363745193,1748858632709,-420.0,0.00019589,2]
[363745194,1748858632739,-420.0,0.00019589,2]
[363745195,1748858632768,-420.0,0.00019589,2]
[363745196,1748858632795,-420.0,0.00019589,2]
[363745197,1748858632820,-420.0,0.00019589,2]
[363745198,1748858632846,-509.72,0.00019589,2]
[363745199,1748858632871,-420.0,0.00019589,2]
[363745200,1748858632899,-1067.77,0.00019589,2]
[363745201,1748858632924,-906.84,0.00019589,2]
[363745202,1748858632949,-847.97,0.00019589,2]
[363745203,1748858632972,-420.0,0.00019589,2]
[363745204,1748858632998,-1205.26,0.00019589,2]
[363745205,1748858633024,-420.0,0.00019589,2]
[363745206,1748858633048,-420.0,0.00019589,2]
[363745207,1748858633073,-420.0,0.00019589,2]
[363745208,1748858633098,-928.89,0.00019589,2]
[363745209,1748858633121,-451.19,0.00019589,2]
[363745210,1748858633150,-427.77,0.00019589,2]
[363745211,1748858633176,-420.0,0.00019589,2]
[363745212,1748858633200,-938.88,0.00019589,2]
[363745213,1748858633225,-420.0,0.00019589,2]
[363745214,1748858633251,-420.0,0.00019589,2]
[363745215,1748858633275,-534.44,0.00019589,2]
[363745216,1748858633301,-804.15,0.00019589,2]
[363745217,1748858633328,-420.0,0.00019589,2]
[363745218,1748858633353,-563.79,0.00019589,2]
[363745219,1748858633380,-1106.61,0.00019589,2]
[363745220,1748858633406,-420.0,0.00019589,2]
[363745221,1748858633428,-289.7,0.00019589,2]
[363745222,1748858633453,-420.0,0.00019589,2]
[363745223,1748858633478,-510.52,0.00019589,2]
[363745224,1748858633501,-608.17,0.00019589,2]
[363745225,1748858633524,-686.52,0.00019589,2]
[363745226,1748858633548,-420.0,0.00019589,2]
[363745227,1748858633572,-1617.635189,0.00019599,2]
[363745228,1748858633597,-900.0,0.000196,7]
[363745229,1748858633620,-400.0,0.000196,7]
[363745230,1748858633646,-6428.14571816,0.00019653,2]
[363745231,1748858633672,-500.0,0.00019671,2]
[363745232,1748858633695,-167.74394956,0.00019686,2]
[363745233,1748858633717,-155.07969308,0.00019692,2]
[363745234,1748858633743,-900.0,0.000197,7]
[363745235,1748858633769,-400.0,0.000197,7]
[363745236,1748858633793,-883.16,0.00019726,2]
[363745237,1748858633818,-420.0,0.00019726,2]
[363745238,1748858633843,-1188.55,0.00019726,2]
[363745239,1748858633868,-420.0,0.00019726,2]
[363745240,1748858633896,-479.07,0.00019726,2]
[363745241,1748858633921,-3556.13,0.00019726,2]
[363745242,1748858633945,-420.0,0.00019726,2]
[363745243,1748858633977,-534.57,0.00019726,2]
[363745244,1748858634003,-2246.06,0.00019726,2]
[363745245,1748858634028,-420.0,0.00019726,2]
[363745246,1748858634054,-1261.59,0.00019726,2]
[363745247,1748858634079,-4888.77,0.00019726,2]
[363745248,1748858634106,-420.0,0.00019726,2]
[363745249,1748858634133,-526.71,0.00019726,2]
[363745250,1748858634160,-287.39,0.00019726,2]
[363745251,1748858634185,-537.05294358,0.00019726,2]
[363745252,1748858634212,-420.0,0.00019726,2]
[363745253,1748858634240,-420.0,0.00019726,2]
[363745254,1748858634265,-420.0,0.00019726,2]
[363745255,1748858634292,-420.0,0.00019726,2]
[363745256,1748858634322,-420.0,0.00019726,2]
[363745257,1748858634347,-420.0,0.00019726,2]
[363745258,1748858634371,-566.71,0.00019726,2]
[363745259,1748858634402,-1067.77,0.00019726,2]
[363745260,1748858634430,-906.84,0.00019726,2]
[363745261,1748858634454,-847.97,0.00019726,2]
[363745262,1748858634478,-420.0,0.00019726,2]
[363745263,1748858634504,-1205.26,0.00019726,2]
[363745264,1748858634526,-420.0,0.00019726,2]
[363745265,1748858634549,-420.0,0.00019726,2]
[363745266,1748858634573,-420.0,0.00019726,2]
[363745267,1748858634596,-928.89,0.00019726,2]
[363745268,1748858634620,-451.19,0.00019726,2]
[363745269,1748858634645,-427.77,0.00019726,2]
[363745270,1748858634667,-420.0,0.00019726,2]
[363745271,1748858634689,-938.88,0.00019726,2]
[363745272,1748858634712,-420.0,0.00019726,2]
[363745273,1748858634736,-420.0,0.00019726,2]
[363745274,1748858634759,-534.44,0.00019726,2]
[363745275,1748858634783,-804.15,0.00019726,2]
[363745276,1748858634807,-420.0,0.00019726,2]
[363745277,1748858634830,-563.79,0.00019726,2]
[363745278,1748858634855,-1106.61,0.00019726,2]
[363745279,1748858634880,-420.0,0.00019726,2]
[363745280,1748858634900,-420.0,0.00019726,2]
[363745281,1748858634923,-510.52,0.00019726,2]
[363745282,1748858634943,-608.17,0.00019726,2]
[363745283,1748858634965,-686.52,0.00019726,2]
[363745284,1748858634989,-420.0,0.00019726,2]
[363745285,1748858635011,-156.587,0.00019726,2]
[363745286,1748858635036,-150.0,0.00019728,2]
[363745287,1748858635059,-150.0,0.00019732,2]
[363745288,1748858635082,-6428.14571816,0.00019735,2]
[363745289,1748858635106,-150.0,0.00019736,2]
[363745290,1748858635131,-150.0,0.00019743,2]
[363745291,1748858635155,-150.0,0.00019743,2]
[363745292,1748858635178,-150.0,0.00019743,2]
[363745293,1748858635202,-150.0,0.00019745,2]
[363745294,1748858635225,-500.0,0.00019753,2]
[363745295,1748858635249,-150.0,0.00019781,2]
[363745296,1748858635273,-150.0,0.00019785,2]
[363745297,1748858635297,-150.0,0.00019785,2]
[363745298,1748858635321,-150.0,0.00019791,2]
[363745299,1748858635344,-167.74394956,0.00019793,2]
[363745300,1748858635367,-157.527,0.00019793,2]
[363745301,1748858635390,-3632.947,0.00019794,2]
[363745302,1748858635418,-151.0,0.00019795,2]
[363745303,1748858635442,-151.0,0.00019795,2]
[363745304,1748858635467,-197.792238,0.00019795,2]
[363745305,1748858635685,-241.649991,0.00019795,2]
[363745306,1748858635709,-241.649991,0.00019795,2]
[363745307,1748858635735,-150.0,0.00019795,2]
[363745308,1748858635761,-150.0,0.00019796,2]
[363745309,1748858635787,-150.0,0.00019797,2]
[363745310,1748858635812,-500.0,0.00019799,2]
[363745311,1748858635836,-151.0,0.000198,2]
[363745312,1748858635858,-151.0,0.000198,2]
[363745313,1748858635882,-900.0,0.000198,7]
[363745314,1748858635906,-400.0,0.000198,7]
[363745315,1748858635930,-150.0,0.00019804,2]
[363745316,1748858635954,-150.0,0.00019806,2]
[363745317,1748858635977,-150.0,0.00019811,2]
[363745318,1748858636001,-150.0,0.00019812,2]
[363745319,1748858636024,-2491.86547296,0.00019818,2]
[363745320,1748858649261,5408.0,0.000177,5]
[363745321,1748858717030,899.6,0.00018811,2]
[363745322,1748858725739,794.93,0.00018759,2]
[363745323,1748858732553,8546.8,0.00018733,2]
[363745324,1748858765857,1000.0,0.00018723,2]
[363745325,1748858818208,1409.97,0.00018699,2]
[363745332,1748859032197,-224.3582185,0.00019077,2]
[363745333,1748859032206,-400.0,0.00019114,2]
[363745334,1748859032215,-300.0,0.00019149,2]
[363745335,1748859032224,-1200.0,0.00019149,2]
[363745336,1748859032233,-7625.41522067,0.0001915,2]
[363745337,1748859032250,-2512.58477933,0.0001915,2]
[363745338,1748859032259,-2717.61522067,0.00019151,2]
[363745506,1748859051902,-752.41307933,0.00019151,2]
[363745507,1748859051914,-226.27706349,0.00019152,2]
[363745508,1748859051927,-173.72293651,0.00019152,2]
[363745509,1748859051939,-300.0,0.00019177,2]
[363745510,1748859051950,-420.0,0.00019178,2]
[363745511,1748859051962,-420.0,0.00019178,2]
[363745512,1748859051973,-420.0,0.00019178,2]
[363745513,1748859051985,-420.0,0.00019178,2]
[363745514,1748859051996,-420.0,0.00019178,2]
[363745515,1748859052008,-420.0,0.00019178,2]
[363745516,1748859052018,-420.0,0.00019178,2]
[363745517,1748859052030,-264.9179468,0.00019178,2]
[363745518,1748859052042,-420.0,0.00019178,2]
[363745519,1748859052056,-420.0,0.00019178,2]
[363745520,1748859052067,-420.0,0.00019178,2]
[363745521,1748859052078,-420.0,0.00019178,2]
[363745522,1748859052090,-309.43106135,0.00019178,2]
[363745523,1748859052102,-420.0,0.00019178,2]
[363745524,1748859052113,-420.0,0.00019178,2]
[363745525,1748859052124,-420.0,0.00019178,2]
[363745526,1748859052135,-420.0,0.00019178,2]
[363745527,1748859052146,-420.0,0.00019178,2]
[363745528,1748859052157,-420.0,0.00019178,2]
[363745529,1748859052167,-420.0,0.00019178,2]
[363745530,1748859052178,-420.0,0.00019178,2]
[363745531,1748859052190,-420.0,0.00019178,2]
[363745532,1748859052201,-420.0,0.00019178,2]
[363745533,1748859052212,-420.0,0.00019178,2]
[363745534,1748859052223,-420.0,0.00019178,2]
[363745535,1748859052235,-506.5686944,0.00019178,2]
[363745536,1748859052246,-420.0,0.00019178,2]
[363745537,1748859052256,-420.0,0.00019178,2]
[363745538,1748859052267,-420.0,0.00019178,2]
[363745539,1748859052278,-420.0,0.00019178,2]
[363745540,1748859052289,-420.0,0.00019178,2]
[363745541,1748859052299,-420.0,0.00019178,2]
[363745542,1748859052308,-420.0,0.00019178,2]
[363745543,1748859052318,-420.0,0.00019178,2]
[363745544,1748859052329,-420.0,0.00019178,2]
[363745545,1748859052340,-420.0,0.00019178,2]
[363745546,1748859052350,-420.0,0.00019178,2]
[363745547,1748859052360,-420.0,0.00019178,2]
[363745548,1748859052369,-420.0,0.00019178,2]
[363745549,1748859052379,-420.0,0.00019178,2]
[363745550,1748859052389,-420.0,0.00019178,2]
[363745551,1748859052398,-420.0,0.00019178,2]
[363745552,1748859052408,-420.0,0.00019178,2]
[363745553,1748859052419,-420.0,0.00019178,2]
[363745554,1748859052428,-468.17,0.00019178,2]
[363745555,1748859052438,-420.0,0.00019178,2]
[363745556,1748859052447,-420.0,0.00019178,2]
[363745557,1748859052457,-420.0,0.00019178,2]
[363745558,1748859052467,-420.0,0.00019178,2]
[363745559,1748859052476,-420.0,0.00019178,2]
[363745560,1748859052486,-420.0,0.00019178,2]
[363745561,1748859052496,-420.0,0.00019178,2]
[363745562,1748859052506,-165.73570453,0.00019178,2]
[363745563,1748859052515,-420.0,0.00019178,2]
[363745564,1748859052525,-420.0,0.00019178,2]
[363745565,1748859052536,-420.0,0.00019178,2]
[363745566,1748859052546,-420.0,0.00019178,2]
[363745567,1748859052556,-420.0,0.00019178,2]
[363745568,1748859052566,-420.0,0.00019178,2]
[363745569,1748859052576,-420.0,0.00019178,2]
[363745570,1748859052586,-420.0,0.00019178,2]
[363745571,1748859052596,-518.7225311,0.00019178,2]
[363745572,1748859052605,-420.0,0.00019178,2]
[363745573,1748859052615,-420.0,0.00019178,2]
[363745574,1748859052624,-420.0,0.00019178,2]
[363745575,1748859052634,-684.09,0.00019178,2]
[363745576,1748859052643,-420.0,0.00019178,2]
[363745577,1748859052653,-420.0,0.00019178,2]
[363745578,1748859052662,-420.0,0.00019178,2]
[363745579,1748859052674,-420.0,0.00019178,2]
[363745580,1748859052685,-420.0,0.00019178,2]
[363745581,1748859052694,-348.511144,0.00019178,2]
[363745582,1748859052703,-420.0,0.00019178,2]
[363745583,1748859052713,-420.0,0.00019178,2]
[363745584,1748859052723,-420.0,0.00019178,2]
[363745585,1748859052732,-150.576486,0.00019178,2]
[363745586,1748859052742,-420.0,0.00019178,2]
[363745587,1748859052752,-420.0,0.00019178,2]
[363745588,1748859052762,-420.0,0.00019178,2]
[363745589,1748859052773,-420.0,0.00019178,2]
[363745590,1748859052782,-420.0,0.00019178,2]
[363745591,1748859052791,-420.0,0.00019178,2]
[363745592,1748859052800,-420.0,0.00019178,2]
[363745593,1748859052810,-1045.4,0.00019178,2]
[363745594,1748859052819,-420.0,0.00019178,2]
[363745595,1748859052828,-420.0,0.00019178,2]
[363745596,1748859052837,-420.0,0.00019178,2]
[363745597,1748859052846,-420.0,0.00019178,2]
[363745598,1748859052860,-1024.04,0.00019178,2]
[363745599,1748859052868,-424.57,0.00019178,2]
[363745600,1748859052876,-420.0,0.00019178,2]
[363745601,1748859052885,-420.0,0.00019178,2]
[363745602,1748859052894,-420.0,0.00019178,2]
[363745603,1748859052903,-447.884233,0.00019178,2]
[363745604,1748859052916,-420.0,0.00019178,2]
[363745605,1748859052927,-426.37006927,0.00019178,2]
[363745606,1748859052936,-420.0,0.00019178,2]
[363745607,1748859052946,-420.0,0.00019178,2]
[363745608,1748859052956,-420.0,0.00019178,2]
[363745609,1748859052966,-420.0,0.00019178,2]
[363745610,1748859052976,-420.0,0.00019178,2]
[363745611,1748859052986,-420.0,0.00019178,2]
[363745612,1748859052995,-1034.23,0.00019178,2]
[363745613,1748859053006,-420.0,0.00019178,2]
[363745614,1748859053016,-420.0,0.00019178,2]
[363745615,1748859053025,-420.0,0.00019178,2]
[363745616,1748859053035,-420.0,0.00019178,2]
[363745617,1748859053044,-420.0,0.00019178,2]
[363745618,1748859053054,-420.0,0.00019178,2]
[363745619,1748859053064,-629.17,0.00019178,2]
[363745620,1748859053074,-420.0,0.00019178,2]
[363745621,1748859053085,-420.0,0.00019178,2]
[363745622,1748859053095,-420.0,0.00019178,2]
[363745623,1748859053105,-420.0,0.00019178,2]
[363745624,1748859053115,-420.0,0.00019178,2]
[363745625,1748859053125,-420.0,0.00019178,2]
[363745626,1748859053135,-420.0,0.00019178,2]
[363745627,1748859053145,-747.74,0.00019178,2]
[363745628,1748859053155,-420.0,0.00019178,2]
[363745629,1748859053164,-420.0,0.00019178,2]
[363745630,1748859053640,-3943.83,0.00019178,2]
[363745631,1748859053651,-420.0,0.00019178,2]
[363745632,1748859053661,-420.0,0.00019178,2]
[363745633,1748859053673,-420.0,0.00019178,2]
[363745634,1748859053684,-420.0,0.00019178,2]
[363745635,1748859053694,-420.0,0.00019178,2]
[363745636,1748859053704,-420.0,0.00019178,2]
[363745637,1748859053715,-420.0,0.00019178,2]
[363745638,1748859053724,-420.0,0.00019178,2]
[363745639,1748859053733,-420.0,0.00019178,2]
[363745640,1748859053743,-420.0,0.00019178,2]